fUSD/lending_fUSD_20240808
["ID","MTS","AMOUNT","RATE_DAILY","PERIOD"]
[334421449,1723081833495,-1344.0,0.00011,2]
[334421450,1723081833504,-447.055,0.00011,2]
[334421451,1723081833514,-810.0,0.00011,2]
[334421452,1723081833523,-150.254,0.00011,2]
[334421453,1723081833532,-555.0,0.00011,2]
[334421454,1723081833541,-150.225,0.00011,2]
[334421455,1723081833550,-1897.668,0.00011,2]
[334421456,1723081833559,-551.303,0.00011,2]
[334421457,1723081833569,-300.506,0.00011,2]
[334421458,1723081833581,-3295.781,0.00011,2]
[334421459,1723081833590,-1139.0,0.00011,2]
[334421460,1723081833599,-2770.60096,0.00011,2]
[334421461,1723081833608,-5848.25,0.00011,2]
[334421462,1723081833618,-150.0,0.00011,2]
[334421463,1723081833627,-216.0,0.00011,2]
[334421464,1723081833636,-216.0,0.00011,2]
[334421465,1723081833646,-289.7,0.00011,2]
[334421466,1723081833655,-265.622,0.00011,2]
[334421467,1723081833664,-209.076,0.00011,2]
[334421468,1723081833674,-163.0,0.00011,2]
[334421469,1723081833683,-163.641,0.00011,2]
[334421470,1723081833692,-1204.0,0.00011,2]
[334421471,1723081833701,-156.085,0.00011,2]
[334421472,1723081833711,-300.06753041,0.00011,2]
[334421473,1723081833720,-6681.76705962,0.00011,2]
[334421474,1723081833732,-3025.514,0.00011,2]
[334421475,1723081833743,-5923.23978873,0.00011,2]
[334421476,1723081833754,-1212.08415165,0.00011,2]
[334421477,1723081833763,-3261.01797281,0.00011,2]
[334421478,1723081833775,-1879.30502719,0.00011,2]
[334421479,1723081833784,-598.4419138,0.00011,2]
[334421480,1723081833796,-708.72710386,0.00011,2]
[334421481,1723081833808,-264.63989011,0.00011,2]
[334421482,1723081833819,-599.46000008,0.00011,2]
[334421483,1723081833861,-10175.29909703,0.00011,2]
[334421504,1723081838557,-420.16484865,0.00011,2]
[334421505,1723081838567,-1673.741,0.00011,2]
[334421506,1723081838578,-217.91909955,0.00011089,2]
[334421507,1723081838591,-1289.24328915,0.00011105,2]
[334421508,1723081838601,-285.3704562,0.00011105,2]
[334421509,1723081838611,-2145.03106891,0.00011105,2]
[334421510,1723081838620,-5674.17036526,0.00011105,2]
[334421511,1723081838632,-6178.35106938,0.00011105,2]
[334421512,1723081838697,-1241.67838036,0.00011105,2]
[334421513,1723081838709,-2382.58714675,0.00011105,2]
[334421514,1723081838719,-128.13285325,0.00011105,2]
[334421515,1723081838731,-5378.01616488,0.00011105,2]
[334421516,1723081838744,-4393.76126669,0.00011105,2]
[334421517,1723081838754,-3202.97553773,0.00011105,2]
[334421518,1723081839134,-150.36,0.00011,2]
[334421519,1723081839144,-1063.32628086,0.00011105,2]
[334421636,1723081840447,-248.196,0.00011,2]
[334421638,1723081840457,-1924.94491211,0.00011105,2]
[334421670,1723081840766,-808.7532693,0.00011105,2]
[334421673,1723081840778,-616.72526627,0.00011105,2]
[334421677,1723081840793,-158.68957917,0.00011105,2]
[334421679,1723081840804,-3978.09066242,0.00011105,2]
[334421681,1723081840814,-5066.33934555,0.00011105,2]
[334421683,1723081840827,-335.20074565,0.00011105,2]
[334421685,1723081840841,-195.91559083,0.00011105,2]
[334421942,1723081843497,-1077.393,0.00011,2]
[334421943,1723081843507,-102.61052423,0.00011105,2]
[334421944,1723081843516,-127.9964799,0.00011105,2]
[334421945,1723081843864,-1147.10745167,0.00011105,2]
[334421946,1723081843875,-251.07245627,0.00011105,2]
[334421947,1723081843906,-1240.38172753,0.00011105,2]
[334421956,1723081846571,-249.834,0.00011,2]
[334421957,1723081846581,-144.36758844,0.00011105,2]
[334421958,1723081846721,-1204.15856401,0.00011105,2]
[334421959,1723081846731,-2209.93398544,0.00011105,2]
[334421960,1723081846741,-1138.64679831,0.00011105,2]
[334421961,1723081846751,-2340.89780687,0.00011105,2]
[334421962,1723081846760,-248.34767981,0.00011105,2]
[334421963,1723081846769,-155.0,0.00011105,2]
[334421964,1723081846778,-200.42850144,0.00011105,2]
[334421965,1723081846788,-205.85700732,0.00011105,2]
[334421966,1723081846797,-1074.23899927,0.00011105,2]
[334421967,1723081846807,-155.0,0.00011105,2]
[334421968,1723081846816,-1022.50205753,0.00011105,2]
[334421969,1723081847490,-153.95720914,0.00011105,2]
[334421970,1723081847499,-155.0,0.00011105,2]
[334421971,1723081847509,-159.54246192,0.00011105,2]
[334421972,1723081847518,-164.33652674,0.00011105,2]
[334421973,1723081847527,-600.19249393,0.00011105,2]
[334421974,1723081847539,-584.32150676,0.00011105,2]
[334421975,1723081847548,-155.0,0.00011105,2]
[334421976,1723081847557,-155.0,0.00011105,2]
[334421977,1723081847567,-484.99646143,0.00011105,2]
[334421978,1723081847576,-255.09228319,0.00011105,2]
[334421979,1723081847585,-3080.91987303,0.00011105,2]
[334421980,1723081847601,-3031.1823392,0.00011105,2]
[334421981,1723081847610,-173.9967123,0.00011105,2]
[334421982,1723081847621,-476.7534528,0.00011105,2]
[334421983,1723081847630,-380.18011514,0.00011105,2]
[334421984,1723081847639,-155.0,0.00011105,2]
[334421986,1723081847647,-165.44102244,0.00011105,2]
[334421988,1723081847657,-400.0,0.00011105,2]
[334421990,1723081847666,-649.5964416,0.00011105,2]
[334421992,1723081847675,-204.94174397,0.00011105,2]
[334421995,1723081847683,-155.69036707,0.00011105,2]
[334421998,1723081847692,-723.10580785,0.00011105,2]
[334422000,1723081847701,-229.85464358,0.00011105,2]
[334422002,1723081847711,-364.03356845,0.00011105,2]
[334422004,1723081847720,-879.18232975,0.00011105,2]
[334422006,1723081847729,-164.31632358,0.00011105,2]
[334422008,1723081847739,-255.06697247,0.00011105,2]
[334422010,1723081847748,-1738.76964944,0.00011105,2]
[334422012,1723081847758,-155.58252529,0.00011105,2]
[334422014,1723081847767,-155.0,0.00011105,2]
[334422016,1723081847776,-243.154171,0.00011105,2]
[334422018,1723081847786,-295.77300949,0.00011105,2]
[334422020,1723081847796,-628.3730026,0.00011105,2]
[334422022,1723081847806,-719.68870544,0.00011105,2]
[334422023,1723081847821,-600.50572099,0.00011105,2]
[334422025,1723081847830,-379.08489886,0.00011105,2]
[334422028,1723081847842,-155.0,0.00011105,2]
[334422029,1723081847851,-394.09088714,0.00011105,2]
[334422031,1723081847860,-401.16988804,0.00011105,2]
[334422033,1723081847870,-284.65830005,0.00011105,2]
[334422035,1723081847880,-1297.73941226,0.00011105,2]
[334422037,1723081847890,-594.81380735,0.00011105,2]
[334422039,1723081847901,-1405.50443999,0.00011105,2]
[334422041,1723081847910,-1126.63117818,0.00011105,2]
[334422043,1723081847920,-365.60352756,0.00011105,2]
[334422045,1723081847930,-155.08633948,0.00011105,2]
[334422047,1723081847940,-264.68856082,0.00011105,2]
[334422049,1723081847950,-11038.87149141,0.00011186,2]
[334422346,1723081933552,362.67347404,0.00025,90]
[334422347,1723082043820,151.74592605,9.452e-05,2]
[334422348,1723082043847,126.92407395,9.452e-05,2]
[334422349,1723082103555,151.41046697,9.452e-05,2]
[334422350,1723082103578,151.41046697,9.452e-05,2]
[334422351,1723082103599,151.41046697,9.452e-05,2]
[334422352,1723082103620,151.2694177,9.452e-05,2]
[334422353,1723082167504,169.38244853,9.452e-05,2]
[334422355,1723082443704,-407.83,0.00010311,2]
[334422356,1723082450105,-157.54,0.00010311,2]
[334422357,1723082470038,-250.0,0.00010311,2]
[334422358,1723082478432,-181.97103197,0.00010311,2]
[334422359,1723082526567,150.0,8.389e-05,2]
[334422360,1723082526591,122.23,8.389e-05,2]
[334422361,1723082528168,-272.23,0.00010653,2]
[334422363,1723082573292,-12338.89814942,0.00010307,2]
[334422366,1723082719215,500.0,0.000248,90]
[334422397,1723083033675,-250.0,0.00010189,2]
[334422398,1723083033687,-500.0,0.00010212,2]
[334422399,1723083033697,-286.01896427,0.00010241,2]
[334422400,1723083033712,-420.38103573,0.00010241,2]
[334422401,1723083033723,-135.88566904,0.00010254,2]
[334422402,1723083033752,-64.11433096,0.00010254,2]
[334422403,1723083033763,-300.0,0.00010306,2]
[334422404,1723083033776,-493.19037575,0.00010307,2]
[334422405,1723083033789,-6332.65296119,0.00010307,2]
[334422406,1723083033802,-4735.25851364,0.00010307,2]
[334422407,1723083033813,-179.47,0.00010846,2]
[334422408,1723083033823,-210.07955224,0.0001095,2]
[334422409,1723083033833,-446.0,0.0001095,2]
[334422410,1723083033843,-116.440681,0.0001095,2]
[334422411,1723083038667,-1227.559319,0.0001095,2]
[334422415,1723083038677,-684.173,0.0001095,2]
[334422417,1723083038687,-250.0,0.00010959,2]
[334422419,1723083038697,-5131.0,0.00010984,2]
[334422420,1723083038708,-289.0,0.00010984,2]
[334422422,1723083038721,-5839.0,0.00010984,2]
[334422424,1723083038733,-1672.0,0.00010984,2]
[334422425,1723083038743,-1203.671,0.00010984,2]
[334422426,1723083038753,-250.0,0.00011,2]
[334422427,1723083038763,-299.99,0.00011,2]
[334422428,1723083038774,-5819.34,0.00011,2]
[334422429,1723083038784,-2458.57,0.00011,2]
[334422430,1723083038794,-499.99,0.00011,2]
[334422431,1723083038804,-153.0,0.00011,2]
[334422432,1723083038814,-150.0,0.00011018,2]
[334422433,1723083038826,-250.0,0.00011019,2]
[334422434,1723083038835,-260.605,0.00011019,2]
[334422435,1723083038845,-200.725,0.00011019,2]
[334422436,1723083038855,-169.861,0.00011019,2]
[334422437,1723083038865,-1256.0,0.00011019,2]
[334422438,1723083038874,-313.16417501,0.00011019,2]
[334422439,1723083039040,-1610.83582499,0.00011019,2]
[334422440,1723083039050,-622.0,0.00011019,2]
[334422441,1723083039063,-1089.02324693,0.00011019,2]
[334422442,1723083039082,-493.97675307,0.00011019,2]
[334422443,1723083039092,-348.327,0.00011019,2]
[334422444,1723083039102,-810.0,0.00011019,2]
[334422445,1723083039112,-800.0,0.0001107,2]
[334422446,1723083039122,-174.93,0.00011083,2]
[334422447,1723083039132,-153.164953,0.0001113,2]
[334422448,1723083039142,-1038.03929644,0.00011176,2]
[334422449,1723083039152,-1000.0,0.00011178,2]
[334422450,1723083039162,-999.99,0.00011185,2]
[334422452,1723083039172,-62.69369749,0.00011186,2]
[334422455,1723083039184,-4106.02685814,0.00011186,2]
[334422459,1723083039217,-277.60947535,0.00011186,2]
[334422781,1723083042531,-731.28027151,0.00010984,2]
[334422783,1723083042543,-343.71972849,0.00010984,2]
[334422785,1723083042554,-1652.59261231,0.00011186,2]
[334422935,1723083043825,-1014.6249167,0.00011186,2]
[334422936,1723083043838,-10518.85384369,0.00011186,2]
[334422986,1723083044974,-1224.25,0.00011186,2]
[334422988,1723083044985,-595.1639049,0.00011186,2]
[334422993,1723083045020,-48801.78410914,0.00011186,2]
[334422995,1723083045031,-24603.8524192,0.00011186,2]
[334423064,1723083046917,-708.63013128,0.00011186,2]
[334423065,1723083046927,-13136.08056104,0.00011186,2]
[334423066,1723083046939,-8436.42479646,0.00011186,2]
[334423067,1723083046951,-1250.0945842,0.00011186,2]
[334423068,1723083046963,-2218.84058109,0.00011186,2]
[334423069,1723083046975,-10671.57888896,0.00011186,2]
[334423070,1723083046984,-1356.21927263,0.00011186,2]
[334423126,1723083186534,266.75,9.255e-05,2]
[334423132,1723083242446,206.20541259,9.255e-05,2]
[334423138,1723083695529,253.41,8.773e-05,2]
[334423141,1723083875160,1000.0,0.00025,120]
[334423142,1723083885654,1000.0,0.00025,120]
[334423143,1723083895034,-272.23,0.00010514,2]
[334423144,1723083901581,1026.931642,0.00025,120]
[334423145,1723083953748,-407.83,0.00010148,2]
[334423148,1723084056950,-272.23,0.00010112,2]
[334423149,1723084057563,-157.54,0.00010112,2]
[334423150,1723084058383,-250.0,0.00010112,2]
[334423151,1723084058844,-160.23,0.00010112,2]
[334423152,1723084059254,-12360.63918139,0.00010125,2]
[334423153,1723084074194,504.382,0.00025,60]
[334423166,1723084193255,254.35,8.219e-05,2]
[334423196,1723084231800,-300.0,9.999e-05,2]
[334423197,1723084231810,-51.13410653,0.0001,2]
[334423198,1723084231821,-6864.7141838,0.0001,2]
[334423199,1723084231830,-250.0,0.00010083,2]
[334423200,1723084231839,-9544.53081861,0.00010125,2]
[334423201,1723084231848,-92.17,0.00010148,2]
[334423202,1723084231857,-254.35,0.0001048,2]
[334423203,1723084231867,-2996.01,0.00010514,2]
[334423204,1723084231875,-189.25,0.00010587,2]
[334423205,1723084231884,-198.97,0.00010612,2]
[334423206,1723084231894,-3107.8132215,0.00010612,2]
[334423207,1723084231905,-552.46305185,0.00010612,2]
[334423208,1723084231938,-337.53974074,0.00010612,2]
[334423209,1723084231949,-953.4260579,0.00010612,2]
[334423210,1723084231960,-11910.46792801,0.00010612,2]
[334423211,1723084231970,-160.0,0.00010817,2]
[334423212,1723084231979,-336.82,0.00010833,2]
[334423213,1723084231988,-150.99,0.00010838,2]
[334423214,1723084231997,-5321.19,0.00010838,2]
[334423215,1723084232009,-321.76,0.00010838,2]
[334423216,1723084232018,-172.39322711,0.00010919,2]
[334423217,1723084232027,-250.0,0.00010959,2]
[334423218,1723084232036,-212.96,0.00010959,2]
[334423219,1723084232046,-387.6425641,0.00010986,2]
[334423220,1723084232055,-150.0,0.00010999,2]
[334423221,1723084232065,-420.0,0.00010999,2]
[334423222,1723084232074,-3275.77628078,0.00011,2]
[334423224,1723084232086,-47140.63394916,0.00011,2]
[334423235,1723084238058,-411.69471063,0.000109,2]
[334423236,1723084238067,-177.47,0.00010959,2]
[334423237,1723084238077,-20193.1432362,0.00011,2]
[334423238,1723084238217,-1000.0,0.00011,2]
[334423605,1723084242121,-574.96549584,0.00011,2]
[334423608,1723084242136,-14609.14285844,0.00011,2]
[334423623,1723084242278,-44572.0738123,0.00011,2]
[334423626,1723084242292,-58906.88002111,0.00011,2]
[334423628,1723084242305,-1944.34995429,0.00011,2]
[334423630,1723084242316,-3379.13328963,0.00011,2]
[334423640,1723084242404,-302.0,0.00011,2]
[334423743,1723084243233,-887.36,0.00010959,2]
[334423745,1723084243243,-205532.30319432,0.00011,2]
[334423747,1723084243253,-931.67518273,0.00011,2]
[334423750,1723084243263,-241547.30272396,0.00011,2]
[334423751,1723084243273,-172.51,0.00011019,2]
[334423753,1723084243282,-163.34208761,0.00011025,2]
[334423755,1723084243292,-19095.83910083,0.00011027,2]
[334423757,1723084243302,-888.46,0.00011036,2]
[334423759,1723084243311,-1158.0,0.00011037,2]
[334423761,1723084243320,-150.39,0.00011037,2]
[334423763,1723084243331,-3289.0,0.00011037,2]
[334423765,1723084243340,-1256.0,0.00011037,2]
[334423767,1723084243349,-622.0,0.00011037,2]
[334423769,1723084243358,-650.948,0.00011037,2]
[334423771,1723084243368,-1179.725,0.00011037,2]
[334423773,1723084243377,-1924.0,0.00011037,2]
[334423775,1723084243387,-5839.0,0.00011037,2]
[334423777,1723084243396,-311.3119,0.00011086,2]
[334423779,1723084243409,-5566.487,0.00011086,2]
[334423781,1723084243418,-2838.68319726,0.00011105,2]
[334423783,1723084243427,-366.32162142,0.00011105,2]
[334423785,1723084243437,-1738.98059471,0.00011105,2]
[334423786,1723084243446,-694.61224978,0.00011105,2]
[334423788,1723084243456,-719.74494366,0.00011105,2]
[334423790,1723084243466,-600.54620621,0.00011105,2]
[334423792,1723084243475,-1123.03052592,0.00011105,2]
[334423794,1723084243486,-274.92305511,0.00011105,2]
[334423796,1723084243496,-21292.38833973,0.00011186,2]
[334423798,1723084243506,-154.756,0.00011186,2]
[334423800,1723084243515,-401.9712389,0.00011186,2]
[334423802,1723084243525,-2308.83413,0.00011186,2]
[334423804,1723084243534,-499.99,0.00011186,2]
[334423806,1723084243544,-1264.2647003,0.0001119,2]
[334423808,1723084243553,-845.27674528,0.00011198,2]
[334423810,1723084243562,-10000.0,0.00011208,2]
[334423812,1723084243572,-530.69,0.000113,2]
[334423814,1723084243581,-635.68,0.000113,2]
[334423816,1723084243590,-530.69,0.000113,2]
[334423818,1723084243599,-300.0,0.000113,2]
[334423820,1723084243609,-530.69,0.000113,2]
[334423822,1723084243618,-276.35,0.00011309,2]
[334423824,1723084243627,-276.35,0.00011312,2]
[334423826,1723084243636,-276.35,0.00011315,2]
[334423828,1723084243646,-155.45,0.00011318,2]
[334423830,1723084243656,-276.35,0.00011318,2]
[334423832,1723084243665,-276.35,0.00011321,2]
[334423834,1723084243674,-155.0,0.00011322,2]
[334423836,1723084243683,-155.06464498,0.00011322,2]
[334423838,1723084243692,-276.35,0.00011324,2]
[334423840,1723084243702,-276.35,0.00011327,2]
[334423842,1723084243711,-155.45,0.00011329,2]
[334423844,1723084243721,-276.35,0.0001133,2]
[334423846,1723084243730,-276.35,0.00011333,2]
[334423848,1723084243739,-276.35,0.00011336,2]
[334423850,1723084243748,-276.35,0.00011339,2]
[334423852,1723084243757,-155.45,0.0001134,2]
[334423854,1723084243767,-276.35,0.00011342,2]
[334423856,1723084243776,-276.35,0.00011345,2]
[334423858,1723084243785,-276.35,0.00011348,2]
[334423860,1723084243794,-276.35,0.00011351,2]
[334423878,1723084243957,-155.45,0.00011352,2]
[334423880,1723084243967,-276.35,0.00011354,2]
[334423882,1723084243976,-276.35,0.00011357,2]
[334423884,1723084243985,-276.35,0.0001136,2]
[334423886,1723084243994,-155.45,0.00011363,2]
[334423888,1723084244004,-276.35,0.00011363,2]
[334423890,1723084244013,-276.35,0.00011366,2]
[334423892,1723084244022,-155.45,0.00011374,2]
[334423894,1723084244031,-840.0,0.00011376,2]
[334423895,1723084244040,-184.50408703,0.00011384,2]
[334423897,1723084244050,-155.63401783,0.00011384,2]
[334423899,1723084244059,-1061.12,0.000114,2]
[334423901,1723084244070,-530.69,0.000114,2]
[334423903,1723084244079,-530.69,0.000114,2]
[334423905,1723084244089,-530.69,0.000114,2]
[334423907,1723084244098,-530.69,0.000114,2]
[334423909,1723084244108,-410.47592058,0.00011467,2]
[334423911,1723084244117,-530.56,0.000115,2]
[334423913,1723084244128,-530.69,0.000115,2]
[334423915,1723084244141,-1257.03046369,0.00011525,2]
[334423917,1723084244153,-173.49,0.00011528,2]
[334423919,1723084244163,-841.24,0.00011589,2]
[334423921,1723084244172,-674.11,0.000116,2]
[334423923,1723084244182,-949.77,0.000116,2]
[334423925,1723084244191,-206.0596071,0.00011814,2]
[334423927,1723084244200,-1708.8,0.00011877,2]
[334423929,1723084244212,-1708.8,0.0001188,2]
[334423931,1723084244222,-1708.8,0.00011883,2]
[334423933,1723084244232,-1708.8,0.00011886,2]
[334423935,1723084244241,-1708.8,0.00011889,2]
[334423937,1723084244251,-1708.8,0.00011892,2]
[334423939,1723084244260,-1708.8,0.00011895,2]
[334423941,1723084244270,-364.61543012,0.00011896,2]
[334423943,1723084244280,-1708.8,0.00011898,2]
[334423945,1723084244289,-411.69471063,0.000119,2]
[334423947,1723084244299,-1708.8,0.00011902,2]
[334423949,1723084244309,-1708.8,0.00011905,2]
[334423951,1723084244319,-1708.8,0.00011908,2]
[334423953,1723084244329,-1708.8,0.00011911,2]
[334423955,1723084244339,-1708.8,0.00011914,2]
[334423957,1723084244349,-151.904909,0.00011917,2]
[334423959,1723084244359,-151.0,0.00011917,2]
[334423961,1723084244368,-151.0,0.00011917,2]
[334423963,1723084244378,-151.0,0.00011917,2]
[334423965,1723084244388,-1708.8,0.00011917,2]
[334423967,1723084244398,-1708.8,0.0001192,2]
[334423969,1723084244411,-1708.8,0.00011923,2]
[334423971,1723084244420,-1708.8,0.00011927,2]
[334423973,1723084244430,-1708.8,0.0001193,2]
[334423975,1723084244440,-1708.8,0.00011933,2]
[334423977,1723084244450,-1708.8,0.00011936,2]
[334423979,1723084244460,-198.97,0.00011938,2]
[334423981,1723084244471,-500.0,0.00012,2]
[334423983,1723084244480,-184.0,0.00012044,2]
[334423985,1723084244490,-587.0,0.00012099,2]
[334423987,1723084244500,-160.0,0.0001217,2]
[334423989,1723084244510,-214.7691,0.0001226,2]
[334423991,1723084244519,-2308.83414,0.0001227,2]
[334423993,1723084244529,-5000.0,0.0001236,2]
[334423995,1723084244540,-2084.84657998,0.0001236,2]
[334423997,1723084244550,-151.0,0.0001236,2]
[334423999,1723084244560,-151.0,0.0001236,2]
[334424001,1723084244569,-151.0,0.0001236,2]
[334424003,1723084244579,-276.063094,0.0001236,2]
[334424005,1723084244589,-151.0,0.0001236,2]
[334424007,1723084244599,-308.0,0.0001249,2]
[334424009,1723084244608,-1669.32,0.00012548,2]
[334424011,1723084244618,-420.77,0.00012548,2]
[334424013,1723084244627,-834.88,0.00012548,2]
[334424015,1723084244637,-420.77,0.00012548,2]
[334424017,1723084244646,-420.77,0.00012548,2]
[334424019,1723084244658,-834.88,0.00012548,2]
[334424021,1723084244668,-420.77,0.00012548,2]
[334424023,1723084244678,-834.88,0.00012548,2]
[334424025,1723084244687,-424.45,0.00012548,2]
[334424027,1723084244697,-842.7,0.00012548,2]
[334424029,1723084244707,-2817.91225149,0.00012581,2]
[334424031,1723084244717,-840.0,0.00012639,2]
[334424033,1723084244726,-254.35,0.00012741,2]
[334424035,1723084244736,-172.51,0.00012856,2]
[334424037,1723084244746,-157.54,0.00012889,2]
[334424039,1723084244756,-179.99,0.00012893,2]
[334424041,1723084244766,-155.0,0.00013,2]
[334424043,1723084244776,-1000.0,0.00013,2]
[334424045,1723084244786,-550.0,0.00013,2]
[334424047,1723084244796,-1010.14,0.00013,2]
[334424049,1723084244805,-300.0,0.00013,2]
[334424051,1723084244815,-198.97,0.00013265,2]
[334424053,1723084244825,-823.0,0.00013309,2]
[334424055,1723084244835,-420.77,0.00013507,2]
[334424057,1723084244844,-834.97,0.00013507,2]
[334424058,1723084244854,-420.77,0.00013507,2]
[334424060,1723084244864,-834.88,0.00013507,2]
[334424062,1723084244873,-420.77,0.00013507,2]
[334424064,1723084244883,-834.88,0.00013507,2]
[334424066,1723084244892,-420.77,0.00013507,2]
[334424068,1723084244902,-834.88,0.00013507,2]
[334424070,1723084244916,-1667.56,0.00013507,2]
[334424072,1723084244925,-420.77,0.00013507,2]
[334424074,1723084244934,-420.77,0.00013507,2]
[334424076,1723084244944,-420.77,0.00013507,2]
[334424078,1723084244954,-420.77,0.00013507,2]
[334424080,1723084244963,-420.77,0.00013507,2]
[334424082,1723084244973,-420.77,0.00013507,2]
[334424084,1723084244983,-419.17,0.00013507,2]
[334424086,1723084244993,-155.26,0.00013507,2]
[334424088,1723084245002,-150.18,0.00013507,2]
[334424090,1723084245012,-150.53,0.00013507,2]
[334424092,1723084245022,-150.0,0.00013507,2]
[334424094,1723084245031,-150.27,0.00013507,2]
[334424096,1723084245042,-150.0,0.00013507,2]
[334424098,1723084245052,-150.0,0.00013507,2]
[334424100,1723084245063,-150.0,0.00013507,2]
[334424102,1723084245072,-150.0,0.00013507,2]
[334424104,1723084245082,-150.0,0.00013507,2]
[334424106,1723084245092,-150.0,0.00013507,2]
[334424108,1723084245101,-150.0,0.00013507,2]
[334424110,1723084245111,-150.0,0.00013507,2]
[334424112,1723084245120,-150.0,0.00013507,2]
[334424114,1723084245130,-150.0,0.00013507,2]
[334424116,1723084245142,-150.0,0.00013507,2]
[334424118,1723084245152,-150.0,0.00013507,2]
[334424119,1723084245162,-150.0,0.00013507,2]
[334424121,1723084245171,-150.0,0.00013507,2]
[334424123,1723084245181,-150.0,0.00013507,2]
[334424125,1723084245191,-150.0,0.00013507,2]
[334424127,1723084245201,-150.0,0.00013507,2]
[334424130,1723084245212,-150.0,0.00013507,2]
[334424132,1723084245221,-150.0,0.00013507,2]
[334424133,1723084245231,-150.0,0.00013507,2]
[334424134,1723084245240,-434.72,0.00013507,2]
[334424135,1723084245250,-150.0,0.00013507,2]
[334424136,1723084245260,-150.0,0.00013507,2]
[334424137,1723084245269,-150.0,0.00013507,2]
[334424138,1723084245279,-150.0,0.00013507,2]
[334424139,1723084245289,-150.0,0.00013507,2]
[334424140,1723084245298,-150.0,0.00013507,2]
[334424141,1723084245307,-150.0,0.00013507,2]
[334424142,1723084245317,-150.0,0.00013507,2]
[334424143,1723084245327,-150.0,0.00013507,2]
[334424144,1723084245336,-329.77,0.00013507,2]
[334424145,1723084245345,-150.34,0.00013507,2]
[334424146,1723084245355,-213.78,0.00013507,2]
[334424147,1723084245365,-2308.83414,0.0001352,2]
[334424148,1723084245375,-160.0,0.00013522,2]
[334424149,1723084245384,-151.04100109,0.00013645,2]
[334424150,1723084245394,-150.0,0.00013647,2]
[334424152,1723084245406,-200.0,0.00013699,2]
[334424154,1723084245415,-171.83,0.00013699,2]
[334424156,1723084245425,-432.05,0.00013699,2]
[334424158,1723084245434,-2751.0,0.00013699,2]
[334424160,1723084245444,-163187.171556,0.000138,3]
[334424162,1723084245453,-151.0,0.000138,2]
[334424163,1723084245463,-187.925906,0.000138,2]
[334424165,1723084245472,-227.845682,0.000138,2]
[334424167,1723084245482,-164.87747637,0.000138,2]
[334424169,1723084245491,-151.0,0.000138,2]
[334424171,1723084245501,-152.494959,0.000138,2]
[334424173,1723084245511,-157.894239,0.000138,2]
[334424175,1723084245521,-20071.96821496,0.000139,3]
[334424177,1723084245535,-493.4,0.000139,3]
[334424180,1723084245546,-72519.42992937,0.000139,3]
[334424182,1723084245562,-316.220239,0.000139,3]
[334424408,1723084247707,-850.03340466,0.00010488,2]
[334424410,1723084247720,-603.1689,0.00010488,2]
[334424421,1723084247875,-1878.94502362,0.00010488,2]
[334424423,1723084247886,-1134.13449414,0.00010488,2]
[334424445,1723084248086,-677.03534051,0.00010488,2]
[334425077,1723084401427,-407.83,9.962e-05,2]
[334425094,1723084897198,-1429.59168389,9.962e-05,2]
[334425140,1723085432243,-198.70180327,0.0001,2]
[334425142,1723085432252,-1618.00979042,0.00010682,2]
[334425143,1723085432261,-405.10462997,0.00010782,2]
[334425144,1723085432277,-2901.91386074,0.00010782,2]
[334425145,1723085432286,-438.10747563,0.00010843,2]
[334425146,1723085432297,-1179.90231478,0.00010843,2]